bitfinex-derivatives/quotes_ETHF0:USTF0_20251204
["timestamp","ask_amount","ask_price","bid_price","bid_amount"]
[1764885420309,4.0988026,3124.0,3123.9,3.7699]
[1764885420310,0.0048026,3124.0,3123.9,3.7699]
[1764885420501,3.7597,3123.9,3123.6,3.2118915]
[1764885420697,3.7597,3123.7,3123.6,6.9817915]
[1764885420903,3.7597,3123.7,3123.6,5.0942915]
[1764885421109,3.7597,3123.7,3123.6,1.8864915]
[1764885421809,3.7597,3123.7,3123.6,0.0040915]
[1764885422999,3.7597,3123.4,3123.2,3.2078]
[1764885423198,16.4667,3123.4,3123.2,3.2078]
[1764885423907,3.7597,3123.4,3123.3,3.82322463]
[1764885424109,3.7597,3123.4,3123.3,1.89062463]
[1764885424415,1.9289,3123.4,3123.3,3.82322463]
[1764885424713,3.7272,3123.4,3123.3,3.82322463]
[1764885428726,3.7272,3123.4,3123.3,0.00822463]
[1764885429031,3.7272,3123.4,3123.3,1.89912463]
[1764885429226,3.7272,3123.4,3123.3,3.83172463]
[1764885430219,3.7272,3123.4,3123.3,1.89912463]
[1764885430816,3.7272,3123.4,3123.3,3.83172463]
[1764885431021,1.9289,3123.4,3123.3,3.83172463]
[1764885431222,3.7272,3123.4,3123.3,3.83172463]
[1764885431427,3.7272,3123.4,3123.3,1.89912463]
[1764885431428,4.58821814,3123.4,3123.3,1.89912463]
[1764885431633,3.7272,3123.4,3123.3,1.89912463]
[1764885432135,3.7272,3123.4,3123.3,3.99176463]
[1764885432340,4.58890097,3123.4,3123.3,3.99176463]
[1764885433524,4.58890097,3123.4,3123.3,0.00822463]
[1764885436029,2.79060097,3123.4,3123.3,3.83172463]
[1764885436228,4.58890097,3123.4,3123.3,3.83172463]
[1764885437127,2.79060097,3123.4,3123.3,3.99176463]
[1764885437334,4.58890097,3123.4,3123.3,3.99176463]
[1764885441832,2.79060097,3123.4,3123.3,3.99176463]
[1764885442634,0.86170097,3123.4,3123.3,3.99176463]
[1764885442840,2.66210097,3123.4,3123.3,3.99176463]
[1764885443339,4.46040097,3123.4,3123.3,3.99176463]
[1764885444443,5.59253954,3123.4,3123.3,3.99176463]
[1764885445245,4.46040097,3123.4,3123.3,3.99176463]
[1764885445442,5.5947445,3123.4,3123.3,3.99176463]
[1764885445737,2.66210097,3123.4,3123.3,3.99176463]
[1764885446241,5.59549218,3123.4,3123.3,3.99176463]
[1764885446538,4.46040097,3123.4,3123.3,3.99176463]
[1764885446938,2.66210097,3123.4,3123.3,3.99176463]
[1764885447129,3.79755259,3123.4,3123.3,3.99176463]
[1764885447941,5.59585259,3123.4,3123.3,3.99176463]
[1764885448239,3.79755259,3123.4,3123.3,3.99176463]
[1764885448438,2.66210097,3123.4,3123.3,3.99176463]
[1764885448639,3.79755259,3123.4,3123.3,3.99176463]
[1764885449334,2.66210097,3123.4,3123.3,3.99176463]
[1764885449540,4.46040097,3123.4,3123.3,3.99176463]
[1764885452542,2.66210097,3123.4,3123.3,3.99176463]
[1764885452739,0.86170097,3123.4,3123.3,3.99176463]
[1764885454745,4.42100097,3123.4,3123.3,3.75736463]
[1764885456445,4.42100097,3123.4,3123.3,0.16826463]
[1764885457140,4.42100097,3123.4,3123.3,0.00822463]
[1764885460546,3.5593,3123.3,3122.8,0.16006]
[1764885460746,3.5593,3122.2,3122.1,3.7492]
[1764885461147,1.7823,3122.2,3122.1,3.7492]
[1764885461852,1.7823,3122.2,3122.1,3.7528104]
[1764885462846,3.2078,3122.8,3122.2,0.16009]
[1764885463051,17.12051109,3122.7,3122.6,1.7976]
[1764885463248,1.7823,3122.3,3122.2,3.74919]
[1764885467158,3.5593,3122.3,3122.2,3.74919]
[1764885468150,1.7823,3122.3,3122.2,3.74919]
[1764885470355,12.696,3122.4,3122.2,0.16009]
[1764885470660,14.3762,3122.4,3122.3,3.4037]
[1764885470855,16.0023,3122.4,3122.3,3.4037]
[1764885473164,3.3063,3122.3,3122.2,0.16009]
[1764885473364,3.3063,3122.3,3122.2,3.56379]
[1764885474463,1.6802,3122.3,3122.2,3.56379]
[1764885475668,12.696,3122.4,3122.2,3.56379]
[1764885475968,16.0023,3122.4,3122.3,3.4037]
[1764885476667,3.3063,3122.3,3122.2,3.56379]
[1764885478268,3.3063,3122.3,3122.2,1.85459]
[1764885478968,3.3063,3122.3,3122.2,3.56379]
[1764885480463,1.6802,3122.3,3122.2,3.56379]
[1764885483165,3.3063,3122.3,3122.2,3.56379]
[1764885483865,3.3063,3122.3,3122.1,0.0036104]
[1764885483866,3.436,3122.2,3122.1,0.0036104]
[1764885484966,16.132,3122.2,3122.1,3.3176104]
[1764885485165,16.132,3122.2,3122.1,1.6507104]
[1764885485364,16.132,3122.2,3122.1,0.0036104]
[1764885487472,3.436,3122.2,3122.1,0.0036104]
[1764885487662,16.132,3122.2,3122.1,0.0036104]
[1764885488273,16.132,3122.2,3122.1,1.6507104]
[1764885488876,16.132,3122.2,3122.1,0.0036104]
[1764885489277,3.436,3122.2,3122.1,0.0036104]
[1764885489467,16.132,3122.2,3122.1,0.0036104]
[1764885490174,17.00279247,3122.2,3122.1,0.0036104]
[1764885492369,4.30679247,3122.2,3122.1,3.3176104]
[1764885492574,12.696,3122.2,3122.1,3.3176104]
[1764885492774,14.4248,3122.2,3122.1,3.3176104]
[1764885493068,17.00239672,3122.2,3122.1,1.6507104]
[1764885493872,17.00239672,3122.2,3122.1,3.3176104]
[1764885494068,17.00239672,3122.2,3122.1,1.6507104]
[1764885494269,17.00239672,3122.2,3122.1,0.0036104]
[1764885494575,18.54143193,3122.2,3122.1,0.0036104]
[1764885500379,17.00239672,3122.2,3122.1,0.0036104]
[1764885500568,18.54143193,3122.2,3122.1,0.0036104]
[1764885501479,5.84543193,3122.2,3122.1,0.0036104]
[1764885501680,21.74923193,3122.2,3122.1,0.0036104]
[1764885501879,9.05323193,3122.2,3122.1,0.0036104]
[1764885502080,21.74923193,3122.2,3122.1,0.0036104]
[1764885502480,9.05323193,3122.2,3122.1,0.0036104]
[1764885502682,21.74923193,3122.2,3122.1,0.0036104]
[1764885505786,21.74859605,3122.2,3122.1,0.0036104]
[1764885508787,9.05259605,3122.2,3122.1,3.3176104]
[1764885508986,21.74859605,3122.2,3122.1,3.3176104]
[1764885509187,20.20956084,3122.2,3122.1,3.3176104]
[1764885509886,3.2078,3122.2,3122.1,3.4777104]
[1764885510490,4.9366,3122.2,3122.1,3.4777104]
[1764885510887,6.6438,3122.2,3122.1,3.4777104]
[1764885511689,4.9366,3122.2,3122.1,3.4777104]
[1764885514582,1.6594,3122.5,3122.4,3.2306]
[1764885514785,17.5622,3122.6,3122.5,4.0851]
[1764885514981,20.10163318,3122.6,3122.5,4.0851]
[1764885516092,5.73783318,3122.6,3122.5,4.24518]
[1764885516293,6.536,3122.6,3122.5,4.24518]
[1764885519986,8.07503521,3122.6,3122.5,0.16008]
[1764885520792,8.07503521,3122.6,3122.5,1.74698]
[1764885522596,19.229,3122.6,3122.5,4.24518]
[1764885528307,6.536,3122.6,3122.5,4.24518]
[1764885528598,19.228,3122.6,3122.5,4.24518]
[1764885528800,19.228,3122.6,3122.5,0.16008]
[1764885529510,2.8558,3121.9,3121.8,0.0048026]
[1764885529698,2.8558,3121.9,3121.0,1.16685]
[1764885529699,20.29363521,3121.9,3121.0,1.16685]
[1764885529894,4.5738,3121.3,3121.2,2.7373]
[1764885530094,4.74683521,3121.7,3121.2,2.7373]
[1764885530294,4.74683521,3121.7,3121.6,2.7373]
[1764885530295,3.2078,3121.7,3121.6,2.7373]
[1764885530588,4.5738,3121.7,3121.1,1.53903521]
[1764885530798,40.8,3121.9,3121.1,1.3821]
[1764885530799,7.60263521,3121.2,3121.1,1.3821]
[1764885530990,6.06665909,3121.2,3121.1,2.74033118]
[1764885531299,18.75765909,3121.2,3121.1,2.74033118]
[1764885531493,4.70065909,3121.2,3121.1,2.74033118]
[1764885531694,12.69405909,3121.2,3121.1,2.74033118]
[1764885531889,0.00305909,3121.2,3121.1,2.74033118]
[1764885532094,0.0048026,3121.5,3121.4,2.7373]
[1764885532298,14.1856026,3121.5,3121.4,2.7373]
[1764885533203,14.18877471,3121.5,3121.4,2.7373]
[1764885533500,15.55477471,3121.5,3121.4,2.7373]
[1764885533696,0.00797471,3121.5,3121.4,2.89743]
[1764885533897,3.2078,3122.0,3121.9,2.89741]
[1764885534691,6.0636,3122.0,3121.9,1.54221]
[1764885534897,6.06659878,3122.0,3121.9,0.16011]
[1764885535097,6.06659878,3122.0,3121.9,1.54221]
[1764885537907,6.06659878,3122.0,3121.9,2.89741]
[1764885539003,0.00299878,3122.0,3121.9,2.89741]
[1764885539208,0.00299878,3122.0,3121.9,6.10521]
[1764885539403,2.8558,3122.8,3122.7,2.7373]
[1764885539600,1.4898,3122.8,3122.7,2.7373]
[1764885539803,6.0636,3123.2,3123.1,1.3821]
[1764885540001,1.4898,3122.6,3122.5,2.201]
[1764885540202,1.4898,3122.6,3122.5,3.5562]
[1764885540403,8.3068,3123.2,3122.8,2.89736]
[1764885540404,0.0048026,3122.9,3122.8,2.89736]
[1764885541507,0.00810838,3122.9,3122.8,2.89736]
[1764885543410,2.86390838,3122.9,3122.8,1.54216]
[1764885543605,2.86390838,3122.9,3122.8,2.89736]
[1764885544214,1.49790838,3122.9,3122.8,2.89736]
[1764885544519,0.00810838,3122.9,3122.8,2.89736]
[1764885547008,4.6274,3123.6,3123.5,3.77823]
[1764885547417,6.0106,3123.6,3123.5,3.77823]
[1764885548115,6.01291735,3123.6,3123.5,3.78056784]
[1764885548707,4.62971735,3123.6,3123.5,3.78056784]
[1764885549313,3.21011735,3123.6,3123.5,3.78056784]
[1764885549511,1.42273004,3123.9,3123.8,2.856]
[1764885549718,0.00313004,3123.9,3123.8,4.39503521]
[1764885550513,0.00550846,3123.9,3123.8,4.39503521]
[1764885551312,0.00550846,3123.9,3123.8,4.55504521]
[1764885551519,2.80830846,3123.9,3123.8,3.01601]
[1764885553115,2.80830846,3123.9,3123.8,0.16001]
[1764885553819,2.80830846,3123.9,3123.8,1.64291]
[1764885554712,2.80830846,3123.9,3123.8,0.16001]
[1764885555021,2.80830846,3123.9,3123.8,1.64291]
[1764885557316,15.49330846,3123.9,3123.5,3.97233784]
[1764885557520,2.8028,3123.6,3123.5,1.48523784]
[1764885558021,2.8028,3123.6,3123.5,0.00233784]
[1764885558416,6.0106,3123.6,3123.5,1e-08]
[1764885561924,12.0106,3123.6,3123.5,1e-08]
[1764885562123,6.0106,3123.6,3123.5,1e-08]
[1764885568330,6.87975086,3123.6,3123.5,1e-08]
[1764885569020,14.41669701,3123.6,3123.5,1e-08]
[1764885569422,2.8028,3122.6,3122.5,2.3018]
[1764885569929,2.8028,3122.6,3122.5,3.6749]
[1764885570127,2.8028,3122.6,3122.5,0.8189]
[1764885570328,2.8028,3122.3,3122.2,1.4877026]
[1764885570530,2.8028,3122.3,3122.2,0.00769839]
[1764885570721,43.6028,3122.3,3122.2,0.00769839]
[1764885571927,43.6028,3122.3,3122.2,1.49059839]
[1764885572926,43.6028,3122.3,3122.2,0.00769839]
[1764885573830,2.8028,3121.9,3121.8,6.22391]
[1764885574825,2.8028,3121.9,3121.8,6.22751768]
[1764885575136,12.685,3122.0,3121.9,2.7281]
[1764885575632,14.0409,3122.0,3121.9,2.7281]
[1764885578723,0.0048026,3122.2,3121.9,2.7281]
[1764885578925,4.5637,3122.7,3122.6,2.7281]
[1764885579125,18.5313,3122.7,3122.6,2.7281]
[1764885582837,4.5637,3122.7,3122.6,2.88817]
[1764885583030,3.2078,3122.7,3122.6,2.88817]
[1764885583537,2.3353,3122.7,3122.6,1.52727]
[1764885583935,2.3353,3122.7,3122.6,2.74017]
[1764885584137,2.3353,3122.7,3122.6,0.16007]
[1764885584837,2.3353,3122.7,3122.6,1.34377]
[1764885586733,2.3353,3122.7,3122.6,2.55667]
[1764885587034,2.33843004,3123.0,3122.9,1.1837]
[1764885587231,15.02343004,3123.0,3122.9,1.1837]
[1764885587435,1.2209,3122.7,3122.6,2.55667]
[1764885587836,15.02343004,3123.0,3122.9,1.1837]
[1764885588336,1.2209,3122.7,3122.6,2.55667]
[1764885588933,2.3353,3122.7,3122.6,2.55667]
[1764885589842,1.2209,3122.7,3122.6,2.55667]
[1764885590939,15.02343004,3123.0,3122.9,2.3966]
[1764885591728,2.33843004,3123.0,3122.9,2.3966]
[1764885591933,1.22403004,3123.0,3122.9,2.3966]
[1764885592439,2.33843004,3123.0,3122.9,2.3966]
[1764885593840,2.3353,3122.9,3122.8,0.16006]
[1764885594948,0.00313004,3123.0,3122.9,2.55666]
[1764885595248,1.22403004,3123.0,3122.9,2.55666]
[1764885598148,0.00313004,3123.0,3122.9,2.55666]
[1764885599252,3.2078,3123.5,3123.4,2.3966]
[1764885599750,4.4287,3123.5,3123.4,2.3966]
[1764885599949,2.3353,3123.1,3123.0,1.8498]
[1764885600352,3.2078,3123.5,3123.4,2.3966]
[1764885600656,1.2209,3123.6,3123.5,3.0627]
[1764885600951,1.2209,3123.8,3123.7,2.3966]
[1764885601152,0.00237842,3123.9,3123.8,2.3966]
[1764885601540,2.33767842,3123.9,3123.8,1.1837]
[1764885601741,1.22327842,3123.9,3123.8,2.3966]
[1764885603250,2.33767842,3123.9,3123.8,1.1837]
[1764885603556,2.3353,3123.8,3123.7,0.16001]
[1764885603751,2.3353,3123.8,3123.7,1.34371]
[1764885606352,2.3353,3123.8,3123.7,0.16001]
[1764885606859,2.3353,3123.8,3123.7,1.32001]
[1764885607157,2.2579,3123.6,3123.5,3.8739]
[1764885607353,14.9389,3123.6,3123.5,3.2078]
[1764885607950,14.9379,3123.6,3123.5,5.0545]
[1764885608160,14.9379,3123.6,3123.5,3.2078]
[1764885609455,14.9379,3123.6,3123.5,5.0545]
[1764885610363,1.14457842,3123.9,3123.8,2.3694]
[1764885610665,14.94027842,3123.9,3123.8,1.16]
[1764885611165,2.26027842,3123.9,3123.8,2.3694]
[1764885611365,0.00237842,3123.9,3123.8,2.3694]
[1764885612058,0.00237842,3123.9,3123.7,0.16002]
[1764885612059,2.2579,3123.8,3123.7,0.16002]
[1764885612257,2.2579,3123.8,3123.7,2.52942]
[1764885612868,1.14457842,3123.9,3123.8,2.3694]
[1764885613071,13.82357842,3123.9,3123.8,2.3694]
[1764885613261,1.14457842,3123.9,3123.8,2.3694]
[1764885613565,13.82357842,3123.9,3123.8,2.3694]
[1764885614466,0.00237842,3123.9,3123.8,2.52941]
[1764885615661,0.00237842,3123.9,3123.8,6.73865034]
[1764885615952,0.00237842,3123.9,3123.8,2.52941]
[1764885616159,2.26027842,3123.9,3123.8,2.52941]
[1764885620066,14.93827842,3123.9,3123.8,0.16001]
[1764885620466,14.93827842,3123.9,3123.5,1.8467]
[1764885620467,2.2579,3123.6,3123.5,1.8467]
[1764885621065,2.2579,3123.6,3123.5,3.0561]
[1764885621462,2.2579,3123.4,3123.3,2.52944]
[1764885623168,12.677,3123.6,3123.5,1.16]
[1764885623372,2.2579,3123.6,3123.5,3.0561]
[1764885623671,14.9349,3123.6,3123.5,3.0561]
[1764885624171,1.1422,3123.6,3123.5,3.0561]
[1764885624473,13.8192,3123.6,3123.5,3.0561]
[1764885624774,14.9349,3123.6,3123.5,3.0561]
[1764885625185,13.8192,3123.6,3123.5,3.0561]
[1764885625470,2.26027842,3123.9,3123.8,1.16]
[1764885625674,2.26027842,3123.9,3123.5,0.6867]
[1764885625675,1.1422,3123.6,3123.5,3.0561]
[1764885625974,1.14457842,3123.9,3123.8,2.3694]
[1764885626170,14.93727842,3123.9,3123.8,2.3694]
[1764885627683,2.2579,3123.6,3123.5,2.00673]
[1764885627882,2.2579,3123.6,3123.5,0.84673]
[1764885628084,2.2579,3123.6,3123.5,3.21613]
[1764885628283,2.2579,3123.6,3123.5,0.16003]
[1764885628682,2.2579,3123.6,3123.5,1.32003]
[1764885629089,2.2579,3123.6,3123.5,0.16003]
[1764885631786,2.2579,3123.2,3123.1,4.3678]
[1764885632391,2.2579,3123.2,3123.1,5.5772]
[1764885633587,2.2579,3123.2,3123.1,2.3694]
[1764885634695,2.2579,3123.2,3123.1,1.16]
[1764885634895,2.2579,3123.2,3123.1,2.2356]
[1764885637188,2.2579,3123.2,3123.1,1.16]
[1764885637493,1.888,3123.1,3123.0,1.7526]
[1764885639594,1.888,3123.1,3123.0,2.8282]
[1764885642297,1.888,3123.1,3123.0,0.6661]
[1764885642800,1.888,3123.1,3123.0,1.7526]
[1764885643401,42.688,3123.1,3123.0,1.7526]
[1764885645500,42.688,3123.1,3123.0,2.8282]
[1764885646095,1.888,3123.1,3123.0,2.8282]
[1764885647401,40.8,3123.2,3123.1,1.917]
[1764885647603,53.477,3123.2,3123.1,1.917]
[1764885647799,40.8,3123.2,3123.1,1.917]
[1764885647999,0.8537,3123.6,3123.5,1.5249]
[1764885648191,0.8537,3123.6,3123.5,2.4757]
[1764885648394,4.9152,3123.8,3123.7,1.917]
[1764885648603,3.2078,3123.8,3123.7,1.917]
[1764885650504,0.00237842,3123.9,3123.8,2.07701]
[1764885650695,3.2078,3124.2,3124.1,1.917]
[1764885651401,5.9584,3124.4,3124.3,1.917]
[1764885651798,5.96248931,3124.4,3124.3,1.91956256]
[1764885652001,46.76248931,3124.4,3124.3,1.91956256]
[1764885652502,45.90878931,3124.4,3124.3,1.91956256]
[1764885652807,0.00408931,3124.4,3124.3,1.91956256]
[1764885655410,4.9152,3125.1,3125.0,2.4757]
[1764885655816,14.8872,3125.1,3125.0,2.4757]
[1764885656108,14.8872,3125.1,3124.7,0.1647626]
[1764885656109,1.7074,3124.8,3124.7,1.1309626]
[1764885656500,1.70994138,3124.8,3124.7,1.1309626]
[1764885656906,1.70994138,3124.8,3124.7,0.1647626]
[1764885657212,1.70994138,3124.8,3124.7,1.1309626]
[1764885657609,1.70994138,3124.8,3124.7,0.9710026]
[1764885657914,1.70994138,3124.8,3124.7,0.0048026]
[1764885658507,1.70994138,3124.8,3124.7,1.9218026]
[1764885658710,0.85624138,3124.8,3124.7,1.9218026]
[1764885659112,1.70994138,3124.8,3124.7,1.9218026]
[1764885659513,0.00254138,3124.8,3124.7,1.9218026]
[1764885659717,1.70994138,3124.8,3124.7,1.9218026]
[1764885661416,1.70994138,3124.8,3124.7,0.9710026]
[1764885661622,1.70994138,3124.8,3124.7,1.9218026]
[1764885663222,1.70994138,3124.8,3124.7,0.9710026]
[1764885663425,1.70994138,3124.8,3124.7,0.0048026]
[1764885663721,1.70994138,3124.8,3124.7,0.9710026]
[1764885664116,1.70994138,3124.8,3124.7,0.0048026]
[1764885667326,0.00254138,3124.8,3124.7,1.9201026]
[1764885667522,3.2078,3125.1,3125.0,2.4296]
[1764885667820,3.2078,3125.1,3125.0,3.96652951]
[1764885668018,3.2078,3125.1,3125.0,4.12647951]
[1764885668221,3.858,3125.1,3125.0,2.58955]
[1764885668418,3.86090568,3125.1,3125.0,2.58955]
[1764885668823,3.21070568,3125.1,3125.0,2.58955]
[1764885669623,3.21070568,3125.1,3125.0,4.12647951]
[1764885670021,3.86090568,3125.1,3125.0,2.58955]
[1764885671827,4.51110568,3125.1,3125.0,1.62025]
[1764885672024,1.3004,3124.8,3124.7,0.0048026]
[1764885672221,1.3004,3124.8,3124.7,0.9508026]
[1764885672622,1.3004,3124.8,3124.7,1.9201026]
[1764885673724,1.3004,3124.8,3124.7,0.9508026]
[1764885673928,1.3004,3124.8,3124.7,0.0048026]
[1764885674429,1.3004,3124.8,3124.7,0.9508026]
[1764885677627,0.6502,3124.8,3124.7,1.9201026]
[1764885678125,1.3004,3124.8,3124.7,1.9201026]
[1764885678526,0.00290568,3125.1,3125.0,2.4296]
[1764885678726,0.00290568,3125.1,3125.0,4.12558651]
[1764885679627,0.00290568,3125.1,3125.0,2.58955]
[1764885680632,0.65310568,3125.1,3125.0,2.58955]
[1764885680829,1.3004,3124.8,3124.7,1.9201026]
[1764885681130,1.3004,3124.8,3124.7,0.9508026]
[1764885681539,1.3004,3124.8,3124.7,1.9201026]
[1764885682336,0.6502,3124.8,3124.7,1.9201026]
[1764885684040,15.87670568,3125.1,3125.0,2.4296]
[1764885684236,16.52690568,3125.1,3125.0,2.4296]
[1764885684727,3.86090568,3125.1,3125.0,2.4296]
[1764885684930,3.21070568,3125.1,3125.0,4.12558651]
[1764885685229,4.1625,3125.5,3125.4,1.9153]
[1764885685737,44.5628,3126.0,3125.9,0.946]
[1764885685934,0.9547,3125.6,3125.5,2.4296]
[1764885686238,1.93802729,3125.6,3125.5,1.9153]
[1764885686438,0.95772729,3125.6,3125.5,1.9153]
[1764885687436,0.95772729,3125.6,3125.5,2.07522]
[1764885687437,0.00302729,3125.6,3125.5,2.07522]
[1764885687835,0.00302729,3125.6,3125.5,2.58952]
[1764885688038,0.00302729,3125.6,3125.5,5.79732]
[1764885688845,44.5628,3126.0,3125.9,1.9153]
[1764885689641,44.56576471,3126.0,3125.9,1.9153]
[1764885689837,5.70076471,3126.0,3125.9,1.9153]
[1764885690034,0.00296471,3126.0,3125.9,2.0752]
[1764885692645,0.00296471,3126.0,3125.9,5.283]
[1764885696051,2.38,3126.5,3126.4,1.8374]
[1764885696447,8.022,3126.5,3126.4,1.8374]
[1764885696750,48.822,3126.5,3126.4,1.8374]
[1764885697248,48.82567516,3126.5,3126.4,0.946]
[1764885698140,1.731,3126.3,3126.2,1.98869]
[1764885698340,0.8607,3126.3,3126.2,1.98869]
[1764885698546,41.35867516,3126.5,3126.4,1.98868]
[1764885698749,40.80367516,3126.5,3126.4,1.98868]
[1764885699048,2.2292,3127.0,3126.9,1.8288]
[1764885699250,7.9492,3127.0,3126.9,1.8288]
[1764885699444,48.7492,3127.0,3126.9,1.8288]
[1764885699641,42.1589,3127.0,3126.9,1.8288]
[1764885699842,0.8703,3126.8,3126.6,0.0048026]
[1764885700042,1.731,3126.1,3126.0,4.1452]
[1764885700443,1.731,3126.4,3126.0,3.4215]
[1764885700642,0.8607,3126.4,3126.3,1.8288]
[1764885700850,1.731,3126.4,3126.3,0.9374]
[1764885701046,1.731,3126.4,3126.3,0.93968073]
[1764885703752,1.731,3126.4,3126.3,0.00228073]
[1764885710164,1.731,3126.4,3126.3,0.89348073]
[1764885710458,0.00480259,3126.7,3126.3,1.97546073]
[1764885710657,1.8291,3126.5,3126.4,1.8133]
[1764885710852,0.91250259,3126.7,3126.6,1.8133]
[1764885711056,1.8291,3126.4,3126.3,0.00228073]
[1764885715269,1.8291,3126.4,3126.0,0.0048026]
[1764885715468,1.8291,3126.1,3126.0,0.0048026]
[1764885715665,3.36513651,3126.1,3126.0,0.0048026]
[1764885715867,1.8291,3126.1,3126.0,0.0048026]
[1764885716271,2.68858257,3126.1,3126.0,0.0048026]
[1764885716471,2.68858257,3126.1,3126.0,0.00717986]
[1764885723276,1.8291,3126.1,3126.0,0.00717986]
[1764885726378,1.8291,3126.1,3126.0,0.89837986]
[1764885726574,5.02420259,3126.7,3126.6,0.9495]
[1764885726780,1.8116,3126.3,3126.2,1.10939]
[1764885729379,1.8116,3126.3,3126.2,2.00749]
[1764885730581,0.8719,3126.5,3126.4,1.8476]
[1764885730786,17.68120259,3126.7,3126.6,0.9495]
[1764885730981,1.81640259,3126.7,3126.6,1.8476]
[1764885731181,14.47340259,3126.7,3126.6,1.8476]
[1764885731493,0.87670259,3126.7,3126.6,1.8476]
[1764885732376,0.00480259,3126.7,3126.6,2.00747]
[1764885732582,0.00380941,3126.8,3126.7,2.00746]
[1764885733482,3.2078,3127.2,3127.1,1.8476]
[1764885733785,0.8719,3127.5,3127.4,1.8476]
[1764885734090,41.6719,3127.5,3127.4,1.8476]
[1764885734390,1.81413118,3127.5,3127.4,1.8476]
[1764885735085,0.00253118,3127.5,3127.4,2.00743]
[1764885735290,0.87443118,3127.5,3127.4,2.00743]
[1764885735491,1.81413118,3127.5,3127.4,2.00743]
[1764885736392,0.00253118,3127.5,3127.4,2.00743]
[1764885736590,0.87443118,3127.5,3127.4,2.00743]
[1764885737182,0.00253118,3127.5,3127.4,2.00743]
[1764885737493,1.8116,3127.8,3127.7,1.10931]
[1764885737691,1.8116,3127.8,3127.7,2.00741]
[1764885738295,1.81531328,3127.8,3127.7,2.00741]
[1764885738891,0.87561328,3127.8,3127.7,2.00741]
[1764885739086,0.00371328,3127.8,3127.7,2.00741]
[1764885739282,10.6656,3128.3,3128.2,0.9495]
[1764885739590,1.8116,3128.3,3128.2,1.8476]
[1764885740293,1.81402998,3128.3,3128.2,1.85031411]
[1764885741186,0.87432998,3128.3,3128.2,1.85031411]
[1764885741586,0.87432998,3128.3,3128.2,3.38317149]
[1764885741786,40.8,3128.4,3128.3,1.8476]
[1764885741988,1.8116,3128.3,3128.2,5.05811411]
[1764885742196,3.2078,3128.8,3128.2,1.85031411]
[1764885742399,0.5055,3130.0,3129.6,0.15971]
[1764885742400,2.3171,3130.0,3129.6,0.15971]
[1764885742590,2.3171,3130.0,3129.9,3.2078]
[1764885742892,2.32023796,3130.0,3129.9,3.2078]
[1764885743592,2.32023796,3130.0,3129.9,0.5048]
[1764885743795,1.8116,3129.6,3129.5,0.00479485]
[1764885744095,1.8116,3129.6,3129.5,4.16209485]
[1764885744291,1.8116,3129.6,3129.5,6.59305223]
[1764885744492,1.8116,3129.6,3129.5,5.06019485]
[1764885745288,1.8116,3129.6,3129.5,4.16209485]
[1764885745490,1.8116,3129.6,3129.5,3.21259485]
[1764885747990,3.2078,3130.5,3129.9,0.9776]
[1764885748191,2.3171,3131.0,3130.9,0.9714]
[1764885748400,2.3171,3131.0,3130.9,3.6935]
[1764885748602,1.3774,3131.0,3130.9,4.33885]
[1764885748797,0.8719,3131.1,3131.0,2.00724]
[1764885748998,0.5055,3132.0,3131.0,2.00724]
[1764885749302,1.719,3131.5,3131.4,3.2078]
[1764885749500,42.519,3131.5,3131.4,3.2078]
[1764885749998,1.719,3131.2,3131.1,0.00479485]
[1764885750198,3.2078,3132.2,3131.2,0.15963]
[1764885750408,1.719,3131.9,3131.8,3.2078]
[1764885750607,42.519,3131.9,3131.8,3.2078]
[1764885750808,40.8,3131.9,3131.4,3.2078]
[1764885751002,1.719,3131.5,3131.4,3.2078]
[1764885751309,0.00262253,3131.5,3131.4,5.0554]
[1764885751708,0.86212253,3131.5,3131.4,5.0554]
[1764885751901,1.72162253,3131.5,3131.4,5.0554]
[1764885752100,0.86212253,3131.5,3131.4,5.0554]
[1764885752606,0.00262253,3131.5,3131.4,5.0554]
[1764885753203,0.00262253,3131.5,3131.4,5.21502]
[1764885753394,3.2078,3132.2,3131.8,1.8476]
[1764885753595,1.719,3132.1,3132.0,1.4591]
[1764885753798,1.719,3132.1,3132.0,3.2078]
[1764885754017,42.519,3132.1,3132.0,3.2078]
[1764885754203,3.2078,3132.7,3132.0,4.0203]
[1764885754405,6.54857232,3132.7,3132.0,4.9131]
[1764885754807,40.8,3132.6,3132.0,4.9131]
[1764885755206,40.8,3132.6,3132.5,2.598]
[1764885755510,0.00277232,3132.7,3132.6,1.7052]
[1764885755901,0.89337232,3132.7,3132.6,1.7052]
[1764885756510,0.00277232,3132.7,3132.6,1.7052]
[1764885757411,7.713,3133.4,3132.6,1.7052]
[1764885757708,1.7908,3132.8,3132.7,1.86954485]
[1764885757908,1.7908,3132.8,3132.7,3.21259485]
[1764885758514,1.7941792,3132.8,3132.7,3.21259485]
[1764885758725,16.1171792,3132.8,3132.0,0.8928]
[1764885759013,3.2078,3132.4,3131.5,3.7174]
[1764885759605,40.8,3132.3,3131.5,3.7174]
[1764885759806,0.00476901,3132.2,3131.6,0.00479485]
[1764885760402,0.00476901,3132.2,3131.6,0.81729485]
[1764885762110,3.2078,3132.0,3131.6,0.81729485]
[1764885762312,3.2078,3132.0,3131.6,0.00479485]
[1764885762518,15.8818,3132.0,3131.6,0.00479485]
[1764885762715,0.83877414,3131.9,3131.6,0.00479485]
[1764885763218,0.83877414,3131.8,3131.6,0.00479485]
[1764885763516,0.83877414,3131.7,3131.6,0.00479485]
[1764885767217,1.96978348,3131.7,3131.6,0.00479485]
[1764885767611,0.83877414,3131.7,3131.6,0.00479485]
[1764885768320,1.01657414,3131.7,3131.6,1.69039485]
[1764885768518,1.19437414,3131.7,3131.6,0.00479485]
[1764885768712,2.31962991,3131.7,3131.6,0.00479485]
[1764885769017,1.19437414,3131.7,3131.6,0.00479485]
[1764885771220,3.46638494,3131.7,3131.6,0.00479485]
[1764885772224,0.1778,3131.1,3131.0,4.02719676]
[1764885772512,1.01657414,3131.1,3131.0,4.02719676]
[1764885772914,1.19437414,3131.1,3131.0,4.02719676]